Workbook

Sheet кол-во набранных очков
A1: Сводная среди тренеров по российским и республиканским соревнованиям
A3: № п/п | B3: ФИО | C3: 2020-2021 | D3: 2019-2020 | E3: 2018-2019 | F3: 2017-2018 | G3: 2016-2017 | H3: 2015-2016 | I3: 2014-2015 | J3: 2013-2014 | K3: 2012-2013 | L3: 2011-2012 | M3: 2010-2011 | N3: Населенный пункт
A4: 1 | B4: Артеев А.И. | F4: 318.5 | G4: 374 | H4: 535 | I4: 1906.5 | J4: 1930 (6в) | K4: 796,5(3в) | L4: 558,5(2в) | M4: 0 (1 в) | N4: Кипиево
A5: 2 | B5: Ануфриев А.А. | C5: 337,5 (4в) | D5: 12 | E5: 506 | F5: 752.5 | G5: 860 | H5: 1287 | I5: 1053 | J5: 1263,5 (4в) | K5: 816 (5в) | L5: 733,5(4в) | M5: 1021,5(7в) | N5: Мохча
A6: 3 | B6: Ануфриев Н.С. | C6: 42 (1в) | D6: 299.5 | E6: 550.5 | F6: 893.5 | G6: 707 | H6: 651.5 | I6: 219 | J6: 407,5 (4в) | K6: 433(5в) | L6: 745,5(6в) | M6: 1053 (7 в) | N6: Диюр
A7: 4 | B7: Ануфриева Г.В. | C7: 0 | D7: 0 | E7: 0
A8: 5 | B8: Батманов И.В. | C8: 65 (2в) | D8: 56.5 | E8: 22.5 | F8: 0 | G8: 0 | H8: 0 | I8: 0 | J8: 101 (1) | K8: 0 | L8: 0 | M8: 0 | N8: Гам
A9: 6 | B9: Валейский К.Н. | C9: 155,5 (3в) | D9: 138.5 | E9: 84.5 | F9: 5 | G9: 299 | H9: 0 | I9: 0 | J9: 0 | K9: 0 | L9: 0 | M9: 0 | N9: Ижма
A10: 7 | B10: Канев И.А. | C10: 549,5 (5в) | D10: 132 | E10: 758 | F10: 1255 | G10: 1238 | H10: 353 | I10: 545 | J10: 252 (2) | K10: 327,5(4в) | L10: 175,5(2в) | M10: 296(2 в) | N10: Ижма
A11: 8 | B11: Канев И.Н | C11: 0 | D11: 227.5 | E11: 410.5 | F11: 1233.5 | G11: 417 | H11: 220 | I11: 94 | J11: 0 | K11: 0 | L11: 0 | M11: 0 | N11: Том
A12: 9 | B12: Канев Э.А. | C12: 0 | D12: 0 | E12: 0 | N12: Краснобор
A13: 10 | B13: Канева М.А. | C13: 0 | D13: 0 | E13: 0 | F13: 0 | G13: 0 | H13: 0 | I13: 0 | J13: 0 | K13: 23(1в) | L13: 0 | M13: 0 | N13: Сизябск
A14: 11 | B14: Ковальчук Л.А. | C14: 89 (2в) | D14: 63.5 | E14: 54 | F14: 40 | G14: 0 | H14: 70 | I14: 213 | J14: 493 (2в) | K14: 612,5(3в) | L14: 639,5(3в) | M14: 320,5(3в) | N14: Вертеп
A15: 12 | B15: Коровин Н.А. | H15: 0 | I15: 0 | J15: 67 (1) | K15: 46(1в) | L15: 129(1в) | M15: 58(1 в) | N15: Няшабож
A16: 13 | B16: Криушинская К.В. | C16: 4136,5 (6в) | E16: 4069.5 | F16: 3934 | G16: 2068 | H16: 1375.5 | I16: 829.5 | J16: 96 (1) | K16: 0 | L16: 250,5(1в) | M16: 516 (3в) | N16: Щельяюр
A17: 14 | B17: Рочев А.И. | C17: 123 (1в) | D17: 83.5 | E17: 0 | N17: Кипиево
A18: 15 | B18: Терентьев Е.И. | C18: 0 | D18: 0 | N18: Бакур
A19: 16 | B19: Терентьев И.Н. | C19: 224 (5в) | D19: 995 | E19: 1164.5 | F19: 569.5 | G19: 525 | H19: 127 | I19: 0 | J19: 0 | K19: 0 | L19: 0 | M19: 0 | N19: Брыкаланск
A20: 17 | B20: Терентьев Л.А. | C20: 0 | D20: 74 | E20: 22.5 | F20: 57.5 | G20: 48 | H20: 279.5 | I20: 117.5 | J20: 1985,5(4в) | K20: 620,5(5в) | L20: 1431(4в) | M20: 664(5 в) | N20: Бакур
A21: 18 | B21: Терентьева А.П. | E21: 0 | N21: Усть-Ижма
A22: 19 | B22: Терентьева Т.Н. | C22: 148 (3в) | D22: 338 | E22: 369 | F22: 730.5 | G22: 1224 | H22: 1432.5 | I22: 1630 | J22: 869 (5в) | K22: 452(5в) | L22: 311(3в) | M22: 0 | N22: Щельяюр
A23: 20 | B23: Филиппов И.И. | H23: 0 | I23: 105 | J23: 129 (1) | K23: 108(2в) | L23: 0 | M23: 87(1 в) | N23: Мошьюга
A24: 21 | B24: Филиппов Н.И. | C24: 27 (1в) | D24: 188 | E24: 245 | F24: 80.5 | G24: 240 | H24: 0 | I24: 186 | J24: 142 (1) | K24: 191()1в | L24: 197(2в) | M24: 109(2 в) | N24: Кельчиюр
A25: 22 | B25: Чупрова И.В. | C25: 4 (1в) | D25: 0 | E25: 0 | F25: 0 | G25: 0 | N25: Няшабож
A26: 23 | B26: Щелкунов В.В. | D26: 2427.5 | N26: Щельяюр
A32: В результаты туры не входят до сезона 2019-2020

Sheet 13-14
A5: Рейтинг выступлений лыжников-гонщиков МБУ ДО "Ижемская спортивная школа имени С.А. Артеева в сезоне 2024-2025
A6: на соревнованиях республиканского и российского уровней среди юношей и девушек 2011-2012 г.р. (младшая возрастная группа)
A9: № п/п | C9: ФИО | D9: Год рож | E9: Тренер | F9: Первенство РК проект "На лыжи" среди юношей и девушек младшего возраста (2011-2012 г.р.) в зачет круглогодичной юношеской Спартакиады среди МО РК (1 и 2 группы) г.Ухта 26 февраля - 02 марта 2025 г. 4 место (командное) | L9: Сумма очков | M9: Место
F10: 3/5 км СВ | G10: очки | H10: 3/3км КЛ | I10: очки | J10: эстафета | K10: очки
A11: 1 | B11: 1 | C11: Хозяинов Егор | D11: 2011 | E11: Криушинская К.В. | F11: 40 | G11: 13 | H11: 22 | I11: 29 | J11: 8 | K11: 27 | L11: =K11+I11+G11 -> 69 | M11: 1
A12: 2 | C12: Терентьев Кирилл | D12: 2011 | E12: Валейский К.Н. | F12: 37 | G12: 15 | H12: 26 | I12: 25 | J12: 8 | K12: 27 | L12: =K12+I12+G12 -> 67 | M12: 2
A13: 3 | B13: 1 | C13: Канев Ярослав | D13: 2011 | E13: Валейский К.Н. | F13: 38 | G13: 14 | H13: 27 | I13: 24 | J13: 8 | K13: 27 | L13: =K13+I13+G13 -> 65 | M13: 3
A14: 4 | C14: Артеев Матвей | D14: 2011 | E14: Валейский К.Н. | F14: 56 | G14: 1 | H14: 35 | I14: 17 | J14: 8 | K14: 27 | L14: =K14+I14+G14 -> 45 | M14: 4
A15: 5 | C15: Филиппов Станислав | D15: 2011 | E15: Канев И.А. | F15: 34 | G15: 17 | H15: 41 | I15: 11 | L15: =I15+G15 -> 28 | M15: 5
A16: 1 | B16: 1 | C16: Тарабукина Эйла | D16: 2011 | E16: Криушинская К.В. | F16: 13 | G16: 45 | H16: 5 | I16: 70 | J16: 5 | K16: 32.5 | L16: =K16+I16+G16 -> 147.5 | M16: 1
A17: 2 | C17: Ануфриева Полина | D17: 2012 | E17: Валейский К.Н. | F17: 30 | G17: 26 | H17: 31 | I17: 26 | J17: 5 | K17: 32.5 | L17: =K17+I17+G17 -> 84.5 | M17: 2
A18: 3 | B18: 1 | C18: Терентьева Полина | D18: 2011 | E18: Канев И.А. | F18: 46 | G18: 15 | H18: 56 | I18: 5 | J18: 5 | K18: 32.5 | L18: =K18+I18+G18 -> 52.5 | M18: 3
A19: 4 | B19: 1 | C19: Артеева Ульяна | D19: 2011 | E19: Терентьев Л.А. | F19: 70 | H19: 47 | I19: 14 | J19: 5 | K19: 32.5 | L19: =K19+I19 -> 46.5 | M19: 4
A20: 5 | B20: 1 | C20: Валейская Яна | D20: 2012 | E20: Валейский К.Н. | F20: 51 | G20: 11 | H20: 49 | I20: 12 | L20: =I20+G20 -> 23 | M20: 5
A21: 6 | C21: Вокуева Наталья | D21: 2011 | E21: Ануфриев Н.С. | F21: 59 | G21: 4 | H21: 36 | I21: 2 | L21: =I21+G21 -> 6 | M21: 6
A22: 7 | C22: Канева Екатерина | D22: 2012 | E22: Валейский К.Н. | F22: 61 | G22: 2 | H22: 69 | L22: =G22 -> 2 | M22: 7
A24: И.о. директора | I24: Н.А. Поздеева

Sheet 15-16
A1: Рейтинг выступлений лыжников-гонщиков МБУ ДО "Ижемская спортивная имени С.А. Артеева в сезоне 2024-2025
A2: на соревнованиях республиканского и российского уровней среди юношей и девушек 15-16 лет средняя возрастная группа)
A4: № п/п | C4: ФИО | D4: Тренер | E4: Год рождения | F4: Первенство Республики Коми по кроссу и лыжероллерам 24-27.08.2024 г. | J4: Первенство Республики Коми по лыжным гонкам памяти Париловых среди юн. и дев. 15-16 лет 18-22.12.2024г. 1 место (командное) | P4: Первенство РК "На призы олимпийской чемпионки Ю.С. Ступак" в рамках проекта "НА ЛЫЖИ!" среди юн. и дев. 15-16 лет 13-18.01.2025 г. 1 место (командное) | X4: Всероссийские соревнования по лыжным гонкам на призы ЗМС Р.П. СМЕТАНИНОЙ среди юношей и девушек 15 - 16 лет | AF4: Сумма очков | AG4: Место
F5: 4-7,5км КЛ | G5: очки | H5: 2-3км кросс | I5: очки | J5: 3-5км КЛ | K5: очки | L5: эста-фета | M5: очки | N5: 3-5км СВ | O5: очки | P5: 10-5км СВ | R5: спринт СВ | S5: очки | T5: 3-5 км КЛ | U5: очки | V5: эста-фета | W5: очки | X5: 5-7,5 км КЛ | Y5: очки | Z5: спинт КЛ | AA5: очки | AB5: 3-5 км СВ | AC5: очки | AD5: эста-фета | AE5: очки
A6: 1. | B6: 2 | C6: Филиппов Матвей | D6: Валейский К.Н. | E6: 2009 | F6: 4 | G6: 70 | H6: 8 | I6: 54 | J6: 13 | K6: 41 | L6: 6 | M6: 30.5 | N6: 19 | O6: 32 | P6: 13 | Q6: 41 | R6: 5 | S6: 65 | T6: 10 | U6: 48 | V6: 5 | W6: 32.5 | X6: 28 | Y6: 93 | Z6: 34 | AA6: 87 | AB6: 84 | AC6: 37 | AD6: 12 | AE6: 109 | AF6: =AE6+AC6+AA6+Y6+W6+U6+S6+Q6+O6+M6+K6+I6+G6 -> 740 | AG6: 1
A7: 2. | B7: 1 | C7: Тарабукин Станислав | D7: Криушинская К.В. | E7: 2009 | F7: 8 | G7: 54 | H7: 28 | I7: 23 | J7: 8 | K7: 54 | L7: 6 | M7: 30.5 | N7: 10 | O7: 48 | P7: 27 | Q7: 24 | R7: 13 | S7: 41 | T7: 16 | U7: 35 | V7: 5 | W7: 32.5 | X7: 169 | Z7: 109 | AA7: 12 | AB7: 147 | AD7: 36 | AE7: 85 | AF7: =AE7+AA7+W7+U7+S7+Q7+O7+M7+K7+I7+G7 -> 439 | AG7: 2
A8: 3. | C8: Савкеев Максим | D8: Валейский К.Н. | E8: 2009 | F8: 12 | G8: 43 | H8: 19 | I8: 32 | J8: 39 | K8: 12 | L8: 13 | M8: 20.5 | N8: 27 | O8: 24 | P8: 25 | Q8: 26 | R8: 54 | T8: 31 | U8: 20 | V8: 5 | W8: 32.5 | X8: 178 | Z8: 169 | AB8: 170 | AD8: 36 | AE8: 85 | AF8: =AE8+W8+U8+Q8+O8+M8+K8+I8+G8 -> 295 | AG8: 3
A9: 4. | C9: Захаров Максим | D9: Криушинская К.В. | E9: 2009 | F9: 11 | G9: 45 | H9: 15 | I9: 37 | J9: 20 | K9: 31 | L9: 13 | M9: 20.5 | N9: 23 | O9: 28 | P9: 50 | Q9: 1 | R9: 25 | S9: 26 | T9: 29 | U9: 22 | V9: 5 | W9: 32.5 | X9: 213 | Z9: н.с | AB9: 257 | AD9: н.с | AF9: =W9+U9+S9+Q9+O9+M9+K9+I9+G9 -> 243 | AG9: 4
A10: 5. | C10: Чупров Тимофей | D10: Канев И.А. | E10: 2010 | J10: 46 | K10: 5 | L10: 20 | M10: 15.5 | N10: 40 | O10: 11 | P10: 43 | Q10: 8 | R10: 31 | S10: 20 | T10: н.с | AF10: =S10+Q10+O10+M10+K10 -> 60 | AG10: 5
A11: 6. | B11: 3 | C11: Бойко Макар | D11: Валейский К.Н. | E11: 2009 | F11: 28 | G11: 23 | H11: 29 | I11: 22 | J11: 51 | N11: 70 | AF11: =I11+G11 -> 45 | AG11: 6
A12: 7. | C12: Вокуев Богдан | D12: Ануфриев А.А. | E12: 2010 | J12: 37 | K12: 9 | L12: 20 | M12: 15.5 | N12: 55 | P12: 37 | Q12: 14 | R12: 46 | T12: 50 | U12: 1 | AF12: =U12+Q12+M12+K12 -> 40 | AG12: 7
A13: 8. | C13: Семяшкин Ярослав | D13: Чупрова И.В. | E13: 2010 | J13: 50 | K13: 1 | N13: 58 | AF13: =K13 -> 1 | AG13: 8
A14: 9. | C14: Рыков Михаил | D14: Канев И.А. | E14: 2009 | P14: 64 | R14: 90 | T14: 80 | AF14: 0 | AG14: 9
A15: 1. | B15: 3 | C15: Терентьева Олеся | D15: Валейский К.Н. | E15: 2009 | F15: 7 | G15: 57 | H15: 7 | I15: 57 | J15: 18 | K15: 33 | L15: 6 | M15: 30.5 | N15: 23 | O15: 28 | P15: 23 | Q15: 28 | R15: 16 | S15: 35 | T15: 26 | U15: 25 | V15: 7 | W15: 28.5 | X15: 126 | Z15: 85 | AA15: 36 | AB15: 127 | AD15: 29 | AF15: =AA15+W15+U15+S15+Q15+O15+M15+K15+I15+G15 -> 358 | AG15: 1
A16: 2. | C16: Демидова Лилия | D16: Терентьев Л.А. | E16: 2010 | F16: 19 | G16: 32 | H16: 12 | I16: 43 | J16: 35 | K16: 16 | L16: 6 | M16: 30.5 | N16: 22 | O16: 29 | P16: 32 | Q16: 19 | R16: 20 | S16: 31 | T16: 37 | U16: 14 | V16: 7 | W16: 28.5 | X16: 228 | Z16: 230 | AB16: 149 | AD16: 29 | AF16: =W16+U16+S16+Q16+O16+M16+K16+I16+G16 -> 243 | AG16: 2
A17: 3. | B17: 1 | C17: Артева Софья | D17: Валейский К.Н. | E17: 2009 | F17: 26 | G17: 25 | H17: 15 | I17: 37 | J17: 40 | K17: 11 | L17: 13 | M17: 20.5 | N17: 54 | P17: 45 | Q17: 6 | R17: 55 | T17: 51 | V17: 7 | W17: 28.5 | AF17: =W17+Q17+M17+K17+I17+G17 -> 128 | AG17: 3
A18: 4. | C18: Канева Анастасия | D18: Канев И.А. | E18: 2010 | J18: 44 | K18: 7 | L18: 13 | M18: 20.5 | N18: 39 | O18: 12 | P18: 43 | Q18: 8 | R18: 33 | S18: 18 | T18: 44 | U18: 7 | V18: 7 | W18: 28.5 | AF18: =W18+U18+S18+Q18+O18+M18+K18 -> 101 | AG18: 4
A19: 5. | C19: Терентьева Анна | D19: Валейский К.Н. | E19: 2009 | J19: 54 | L19: 20 | M19: 15.5 | N19: 59 | P19: 65 | R19: 78 | T19: 65 | AF19: =M19 -> 16 | AG19: 5
A20: 6. | C20: Власик Мирослава | D20: Чупрова И.В. | E20: 2009 | J20: 68 | L20: 20 | M20: 15.5 | N20: н.с. | AF20: =M20 -> 15.5 | AG20: 6
B23: Хозяинов Андрей | C23: И.о. директора | K23: Н.А. Поздеева | X23: И.о. директора | AF23: Н.А. Поздеева

Sheet 17-18
B4: Рейтинг выступлений лыжников-гонщиков МБУ ДО "Ижемская спортивная школа имени С.А. Артеева " в сезоне 2024-2025
A8: п/п № | B8: ФИО | C8: Год рож | D8: Тренер | E8: Первенство Республики Коми по кроссу и лыжероллерам 24-28.08.2024г. (г.Сыктывкар) | K8: Всероссийские соревнования по лыжным гонкам среди юношей и девушек 17-18 лет 06-09.12.2024 г. (г. Сыктывкар) | Q8: Врероссийские соревнования по лыжным гонкам среди юниоров 19-20 лет 12-17.12.2024 г. (г.Тюмень) | U8: Первенство Республики Коми по лыжным гонкам памяти Париловых 18-22.12.2024г. 1 место (командное) (г.Сыктывкар) | AA8: Первенство Республики Коми по лыжным гонкам памяти А.И. Потолицина 13-18.01.2025 г. 1 место (командное) (г.Сыктывкар) | AI8: Первенство Северо-Западного федерального округа по лыжным гонкам Юноши, девушки (17-18 лет) 29.01-02.02.2025г. (г.Кировск) | AQ8: Первенство России по лыжным гонкам среди юношей и девушек 17-18 лет (Архангельская обл., д.Кононовская) 05-08.03.2025г. | AW8: КУБОК РОССИИ по лыжным гонкам VII этап (сезон 2024-2025 г.г.) г.Сыктывкар | AY8: ПРК по лыжным гонкам среди юн. и дев. 17-18 лет 22-23.03.2025 1 место (ком.) | BA8: Первенство России по лыжным гонкам среди юношей и девушек 19-20 лет (Кирово-Чепецк) 20.03.2025г. | BE8: Сумма очков | BF8: Место
E9: 7,5-10 км КЛ | F9: очки | G9: спринт СВ | H9: очки | I9: кросс 3-5 км | J9: очки | K9: 10 км КЛ | L9: очки | M9: спринт СВ | N9: очки | O9: 10 км СВ | P9: очки | Q9: спринт КЛ | R9: очки | S9: 10 км СВ | T9: очки | U9: 10-5 км КЛ | V9: очки | W9: 5-10 км СВ | X9: очки | Y9: спринт ком. СВ | Z9: очки | AA9: 10-15 км КЛ | AB9: очки | AC9: спринт | AD9: очки | AE9: 5-10 км КЛ | AF9: очки | AG9: смеш. эста-фета | AH9: очки | AI9: 15 км СВ | AJ9: очки | AK9: спринт КЛ | AL9: очки | AM9: 10 км КЛ | AN9: очки | AO9: эстафета (4×5 км) | AP9: очки | AQ9: 10км КЛ | AR9: очки | AS9: спринт КЛ | AT9: очки | AU9: 15 км СВ | AV9: очки | AW9: 10 км КЛ | AX9: очки | AY9: 15 км КЛ | AZ9: очки | BA9: 10 км КЛ | BB9: очки | BC9: эста-фета | BD9: очки
A10: 1. | B10: Дроботов Антон | C10: 2007 | D10: Криушинская К.В | E10: 1 | F10: 100 | G10: 1 | H10: 100 | I10: 2 | J10: 88 | K10: 8 | L10: 116 | M10: 8 | N10: 116 | O10: 4 | P10: 131 | Q10: 84 | R10: 37 | S10: 15 | T10: 106 | U10: 1 | V10: 100 | W10: н.с | Y10: 1 | Z10: 100 | AA10: 1 | AB10: 100 | AC10: 1 | AD10: 100 | AG10: 7 | AH10: 28.5 | AI10: 1 | AJ10: 155 | AK10: 2 | AL10: 145 | AM10: 1 | AN10: 155 | AO10: 3 | AP10: 137 | AQ10: 1 | AR10: 200 | AS10: 14 | AT10: 168 | AU10: 1 | AV10: 200 | AW10: 30 | AX10: 152 | BA10: 6 | BB10: 181 | BC10: 3 | BD10: 191 | BE10: =BD10+BB10+AX10+AV10+AT10+AR10+AP10+AN10+AL10+AJ10+AH10+AD10+AB10+Z10+V10+T10+R10+P10+N10+L10+J10+H10+F10 -> 2906.5 | BF10: 1
A11: 2. | B11: Сметанин Виктор | C11: 2007 | D11: Криушинская К.В | E11: 15 | F11: 37 | G11: 11 | H11: 45 | I11: 7 | J11: 57 | U11: 12 | V11: 43 | W11: 7 | X11: 57 | Y11: 20 | Z11: 31 | AA11: 16 | AB11: 35 | AC11: 15 | AD11: 37 | AG11: 7 | AH11: 28.5 | AY11: 4 | AZ11: 70 | BE11: =AZ11+AH11+AD11+AB11+Z11+X11+V11+J11+H11+F11 -> 441 | BF11: 2
A12: 3. | B12: Хозяинов Андрей | C12: 2008 | D12: Криушинская К.В | E12: 21 | F12: 30 | G12: 24 | H12: 27 | I12: 10 | J12: 48 | U12: 19 | V12: 32 | W12: 11 | X12: 45 | Y12: 28 | Z12: 23 | AA12: 13 | AB12: 41 | AC12: 28 | AD12: 23 | AY12: 5 | AZ12: 65 | BE12: =AZ12+AD12+AB12+Z12+X12+V12+J12+H12+F12 -> 334 | BF12: 3
A13: 4. | B13: Филиппов Юрий | C13: 2007 | D13: Валейский К.Н. | E13: 16 | F13: 35 | G13: 17 | H13: 34 | I13: 20 | J13: 31 | U13: 16 | V13: 35 | W13: 9 | X13: 51 | Y13: 27 | Z13: 24 | AA13: 8 | AB13: 54 | AC13: 31 | AD13: 20 | AY13: 11 | AZ13: 48 | BE13: =AZ13+AD13+AB13+Z13+X13+V13+J13+H13+F13 -> 332 | BF13: 4
A14: 5. | B14: Сенюков Пётр | C14: 2007 | D14: Криушинская К.В | G14: 29 | H14: 22 | I14: 36 | J14: 15 | BE14: =J14+H14 -> 37 | BF14: 5
A15: 1. | B15: Крайнова Елизавета | C15: 2008 | D15: Валейский К.Н. | E15: 10 | F15: 48 | G15: 14 | H15: 39 | I15: 7 | J15: 57 | U15: 11 | V15: 45 | W15: 11 | X15: 45 | Y15: 13 | Z15: 41 | AA15: 23 | AB15: 28 | AC15: н.с. | AE15: 20 | AF15: 31 | AG15: 7 | AH15: 28.5 | AY15: 17 | AZ15: 57 | BE15: =AZ15+AH15+AF15+AB15+Z15+X15+V15+J15+H15+F15 -> 419.5 | BF15: 1
A16: 2. | B16: Забоева Екатерина | C16: 2007 | D16: Ануфриев А.А. | U16: 17 | V16: 34 | W16: 19 | X16: 32 | Y16: 22 | Z16: 29 | AA16: 15 | AB16: 37 | AC16: 20 | AE16: 17 | AF16: 34 | AG16: 7 | AH16: 28.5 | AY16: 22 | AZ16: 51 | BE16: =AZ16+AH16+AF16+AB16+Z16+X16+V16 -> 245.5 | BF16: 2
J17: Н.А. Поздеева
B18: И.о. директора | AH18: И.о. директора | BA18: Н.А. Поздеева

Sheet 19-20
A3: Рейтинг выступлений лыжников-гонщиков МБУ ДО "Ижемская спортивная шкоа имени С.А. Артеева в сезоне 2023-2024
A4: на соревнованиях республиканского и российского уровней среди юношей и девушек 19-20 лет (юниоры)
A7: № п/п | B7: ФИО | C7: Год рождения | D7: Тренер | AW7: Сумма очков | AX7: Место
A9: 1
